Cogmind - Beta 15 @@@ ROGUE MODE // 2025.09.10 @ 09:01:48 Player: winnking222 Result: Destroyed by MN-9HC(R) with Subdweller Laser Performance ------------- Evolutions (0) 0 Regions Visited (2) 400 Robots Destroyed (16) 80 Value Destroyed (381) 381 Prototype IDs (11) 220 Alien Tech Used (0) 0 Bonus (0) 0 TOTAL SCORE: 1081 Bonus ------- None Cogmind --------- Core Integrity 0/250 Matter 277/300 Energy 100/100 System Corruption 0% Temperature Cool (6) Movement Rolling (167) Ox6 Location -10/Subcaves Parts ------- > --- POWER (1) -------- (None) > --- PROPULSION (2) --- Wheel Subdweller Monowheel > --- UTILITY (2) ------ Humpback > --- WEAPON (2) ------- Subdweller Laser Battle Rifle > --- INVENTORY (35) --- Subdweller Power Source Subdweller Power Source Spiked Treads Wheel Subdweller Monowheel Subdweller Monowheel Medium Storage Unit Humpback Subdweller Optics Subdweller Laser Powered Cannon Subdweller Machine Gun Battle Cannon Peak State ------------ > --- POWER ------------ Ion Engine > --- PROPULSION ------- Wheel Subdweller Monowheel > --- UTILITY ---------- Humpback > --- WEAPON ----------- Subdweller Laser Battle Rifle > --- INVENTORY -------- Subdweller Power Source Subdweller Power Source Spiked Treads Wheel Subdweller Monowheel Medium Storage Unit Humpback Subdweller Optics Subdweller Laser Powered Cannon Subdweller Machine Gun Battle Cannon [Rating: 13] Favorites ----------- Power Ion Engine Engine Ion Engine Propulsion Aluminum Leg Treads Light Treads Leg Aluminum Leg Wheel Wheel Utility Medium Storage Unit Device Seismic Detector Storage Medium Storage Unit Weapon Subdweller Laser Energy Gun Subdweller Laser Ballistic Gun Battle Rifle Build | -11 -10 -10 ------- Run | Yrd Mat Sub Slots Evolved . | . . . Power . | . . . Propulsion . | . . . Utility . | . . . Weapon . | . . . Parts Attached 20 | 7 1 12 Power 3 | 1 . 2 Engine 3 | 1 . 2 Core . | . . . Reactor . | . . . Propulsion 6 | 2 . 4 Treads 2 | 2 . . Leg 2 | . . 2 Wheel 2 | . . 2 Hover . | . . . Flight . | . . . Utility 4 | 2 1 1 Device 1 | 1 . . Storage 3 | 1 1 1 Processor . | . . . Hackware . | . . . Protection . | . . . Artifact . | . . . Weapon 7 | 2 . 5 Energy Gun 5 | 2 . 3 Energy Cannon . | . . . Ballistic Gun 2 | . . 2 Ballistic Cannon . | . . . Launcher . | . . . Special Weapon . | . . . Impact Weapon . | . . . Slashing Weapon . | . . . Piercing Weapon . | . . . Special Melee Weapon . | . . . Unidentified Prototypes . | . . . Parts Lost 8 | . . 8 Power 3 | . . 3 Propulsion 1 | . . 1 Utility 1 | . . 1 Weapon 3 | . . 3 Highest Loss Streak 2 | . . 2 To Critical Strikes . | . . . Average Backups 7 | 5 6 8 Power 1 | . 1 1 Propulsion 3 | 3 4 3 Utility . | . . 1 Weapon 1 | 1 1 1 Tool/Special . | . . . Unused Backups 13 | . . 13 Power 2 | . . 2 Propulsion 4 | . . 4 Utility 2 | . . 2 Weapon 5 | . . 5 Tool/Special . | . . . Average Slot Usage (%) 84 | . 100 82 Engine 13 | . 14 13 Treads 9 | . 28 6 Leg 14 | . . 16 Wheel 4 | . . 5 Device 2 | . 14 1 Storage 14 | . 14 14 Energy Gun 20 | . 28 19 Ballistic Gun 5 | . . 6 Peak Build Rating 13 | 7 7 13 Average Rating 8 | 5 7 9 On Entrance 4 | . 7 7 Naked Turns . | . . . Heaviest Build 213 | 11 16 213 Greatest Support 40 | 40 40 40 Greatest Overweight (x) 10 | 1 . 10 Average Overweight (x) 1 | . . 1 Largest Inventory Capacity 35 | 8 10 35 Average Capacity 16 | 7 8 19 Most Carried 15 | 8 8 15 Average Carried 8 | 5 6 9 Final Capacity 35 | 8 10 35 Final Carried 15 | 6 7 15 Class Distribution -------------------- 70% | Mutant 29% | Hauler-Mutant Dominant Class ---------------- Mutant | -10/Materials Mutant | -10/Subcaves Resources | -11 -10 -10 ----------- Run | Yrd Mat Sub Matter Collected 468 | 270 10 188 Remotely . | . . . Salvage Created 596 | 190 . 406 Parts 43 | 18 . 25 Haulers Intercepted . | . . . Recyclers Shooed . | . . . Parts Field Recycled . | . . . Retrieved Matter . | . . . Parts Self-Destructed 17 | . . 17 Prevented . | . . . Kills | -11 -10 -10 ------- Run | Yrd Mat Sub Combat Hostiles Destroyed 10 | . . 10 Guns 10 | . . 10 Classes Destroyed 4 | 2 . 2 Tunneler 5 | 5 . . Recycler 1 | 1 . . Swarmer 2 | . . 2 Subdweller 8 | . . 8 Best Kill Streak 4 | 4 . 3 Combat Bots Only 3 | . . 3 Max Kills in Single Turn 2 | 1 . 2 Gunslinging 1 | . . 1 Exploded . | . . . Melee . | . . . Uniques/NPCs Destroyed . | . . . Combat | -11 -10 -10 -------- Run | Yrd Mat Sub Hostile Shots Fired 97 | . 20 77 Missed 23 | . 5 18 Hits 74 | . 15 59 Projectile 74 | . 15 59 Critical Strikes 1 | . . 1 Damage Taken 1350 | . 125 1225 Core 265 | . 17 248 Absorbed by Shields . | . . . Core Remaining (%) 100 | 100 . . Volleys Fired 78 | 13 1 64 Largest 2 | 2 2 2 Hottest 120 | 80 80 120 Shots Fired 131 | 26 2 103 Gun 131 | 26 2 103 Cannon . | . . . Launcher . | . . . Special . | . . . Kinetic 37 | . . 37 Thermal 85 | 26 2 57 Explosive . | . . . Electromagnetic 9 | . . 9 Robot Hit Streak 8 | 3 . 8 Robot Miss Streak 4 | 4 . 3 Penetration Max . | . . . Secondary Targets 1 | . . 1 Max Gunslinging Chain 1 | . . 1 Shots Hit Robots 63 | 10 . 53 Core Hits 28 | 7 . 21 Critical Kills 1 | . . 1 Critical Parts Destroyed . | . . . Critical Strikes 2 | . . 2 Destroy 2 | . . 2 Melee Attacks . | . . . Impact . | . . . Slashing . | . . . Piercing . | . . . Sneak Attacks . | . . . Combat Hostiles . | . . . Follow-up Attacks . | . . . Damage Inflicted 902 | 106 . 796 Guns 902 | 106 . 796 Cannons . | . . . Explosions . | . . . Melee . | . . . Ramming . | . . . Kinetic 237 | . . 237 Thermal 599 | 106 . 493 Explosive . | . . . Electromagnetic 66 | . . 66 Impact . | . . . Slashing . | . . . Piercing . | . . . Highest Corruption . | . . . Average Corruption . | . . . Corruption Purged . | . . . Corruption Blocked . | . . . Overload Shots . | . . . Overflow Damage . | . . . Projectiles . | . . . Explosions . | . . . Melee . | . . . Knockbacks . | . . . Impact . | . . . Kinetic . | . . . Secondary . | . . . Self-Inflicted Damage . | . . . Shots . | . . . Rammed . | . . . Targets Rammed . | . . . Kicked . | . . . Crushed . | . . . Highest Temperature 54 | 54 18 12 Average Temperature 18 | 26 12 5 Received Heat Transfer 126 | . . 126 Siege Activations . | . . . Martial Activations . | . . . Shielding Activations . | . . . Robots Disrupted . | . . . Combat Hostiles . | . . . Robots Corrupted . | . . . Combat Hostiles . | . . . Parts Fried . | . . . Impact Corruptions . | . . . Robots Melted . | . . . Combat Hostiles . | . . . Parts Melted 2 | . . 2 Heat Transferred 1000 | 250 . 750 Parts Sabotaged . | . . . Parts Stolen . | . . . Parts Stripped . | . . . Power Chain Reactions . | . . . Alert | -11 -10 -10 ------- Run | Yrd Mat Sub Maximum Alert Level . | . . . Low Security (%) 100 | 100 100 . Level 1 . | . . . Level 2 . | . . . Level 3 . | . . . Level 4 . | . . . Level 5 . | . . . High Security . | . . . Max Security . | . . . Peak Influence 10 | 10 . . Initial . | . . . Average 1 | 2 . . Influence Increases 80 | 30 . 50 Destroy 0b10 Robot/C 40 | . . 40 Destroy 0b10 Robot/NC 30 | 30 . . Destroy Leader 10 | . . 10 Influence Decreases 80 | 30 . 50 Time Decay 70 | 30 . 40 Lost Part 10 | . . 10 Squads Dispatched . | . . . Investigation . | . . . Extermination . | . . . Reinforcement . | . . . Assault . | . . . Garrison . | . . . Intercept . | . . . Searches Triggered . | . . . Construction Impeded . | . . . Haulers Reinforced . | . . . Active Scanning Responses . | . . . Cargo Convoy Interrupts . | . . . Stealth | -11 -10 -10 --------- Run | Yrd Mat Sub Distress Signals . | . . . Communications Jammed . | . . . Distress Signals . | . . . Times Spotted 17 | . 4 13 Peak Tracking Total 3 | . 3 3 Tactical Retreats . | . . . Traps | -11 -10 -10 ------- Run | Yrd Mat Sub Traps Triggered 3 | . . 3 Indirectly . | . . . Trap Hack Attempts . | . . . Triggered . | . . . Disarmed . | . . . Reprogrammed . | . . . Reused . | . . . Traps Extracted . | . . . Installed . | . . . Triggered . | . . . Machines | -11 -10 -10 ---------- Run | Yrd Mat Sub Machines Disabled 1 | . . 1 Max in Single Turn 1 | . . 1 Machines Repaired . | . . . Machines Dismantled . | . . . Machines Sabotaged . | . . . Overloaded Fab Kills . | . . . Hacking | -11 -10 -10 --------- Run | Yrd Mat Sub Machines Accessed 1 | . . 1 Terminals . | . . . Fabricators . | . . . Repair Stations . | . . . Recycling Units . | . . . Scanalyzers . | . . . Garrison Access . | . . . Total Hacks 1 | . . 1 Successful 1 | . . 1 Failed . | . . . Catastrophic . | . . . Database Lockouts . | . . . Manual . | . . . Terminals . | . . . Fabricators . | . . . Repair Stations . | . . . Recycling Units . | . . . Scanalyzers . | . . . Garrison Access . | . . . Terminal Hacks 1 | . . 1 Proto ID Catalog 1 | . . 1 Fabricator Hacks . | . . . Repair Station Hacks . | . . . Recycling Unit Hacks . | . . . Scanalyzer . | . . . Garrison Access Hacks . | . . . Unauthorized Hacks . | . . . Terminals . | . . . Fabricators . | . . . Repair Stations . | . . . Recycling Units . | . . . Scanalyzers . | . . . Garrison Access . | . . . Data Cores Recovered . | . . . Used . | . . . Hacking Detections . | . . . Full Trace Events . | . . . Feedback Events . | . . . Feedback Blocked . | . . . Robot Schematics Acquired . | . . . Robots Built . | . . . Authchips . | . . . Time . | . . . Total Robot Build Rating . | . . . Part Schematics Acquired . | . . . Parts Built . | . . . Authchips . | . . . Time . | . . . Total Part Build Rating . | . . . Parts Repaired . | . . . Time . | . . . Parts Recycled . | . . . Recycled Matter . | . . . Retrieved Matter . | . . . Retrieved Components . | . . . Parts Scanalyzed . | . . . Part Schematics Acquired . | . . . Parts Damaged . | . . . Bothacking | -11 -10 -10 ------------ Run | Yrd Mat Sub Used RIF Installer . | . . . Robots Hacked . | . . . Non-combat . | . . . Combat . | . . . Robot Hacks Applied . | . . . Relay Couplers Released . | . . . Fabnet Peak Effective % . | . . . Robots Rewired . | . . . Allies Hacked . | . . . Hacks Repelled . | . . . Allies | -11 -10 -10 -------- Run | Yrd Mat Sub Total Allies . | . . . Largest Group . | . . . Highest-Rated Group . | . . . Highest-Rated Ally . | . . . Total Orders . | . . . Ally Attacks . | . . . Total Damage . | . . . Kills . | . . . Allies Corrupted . | . . . Allies Melted . | . . . Intel | -11 -10 -10 ------- Run | Yrd Mat Sub Active Infowar (turns) 335 | 12 199 124 Seismic 335 | 12 199 124 Robot Analysis Total . | . . . Derelict Logs Recovered 3 | . . 3 Drone Launches . | . . . Drone Recoveries . | . . . Exploration | -11 -10 -10 ------------- Run | Yrd Mat Sub Turns Passed 1890 | 159 199 1532 Spaces Moved 869 | 77 121 671 Core 22 | 22 . . Treads 348 | 55 121 172 Legs 381 | . . 381 Wheels 118 | . . 118 Hover . | . . . Flight . | . . . Fastest Speed 50 | 50 160 120 Average Speed 179 | 131 160 189 Slowest Speed 820 | 160 160 820 Overloaded Moves . | . . . Propulsion Burnouts . | . . . Robots Hopped . | . . . Potential Cave-ins . | . . . Cave-ins Triggered . | . . . Exploration Rate (%) 28 | 5 33 47 Regions Visited 2 Branch Regions 1 Pre-discovered Areas 1 | . . 1 Known Exits Taken . | . . . Unknown Exits Taken 2 | 1 1 . Scrap Searched 3 | . . 3 Spaces Dug . | . . . Terrain Destroyed . | . . . Melee . | . . . Projectile . | . . . AOE . | . . . Terrain Rammed . | . . . Walls Destroyed . | . . . Machines Disabled . | . . . Actions | -11 -10 -10 --------- Run | Yrd Mat Sub Total 1065 | 108 125 832 Wait 53 | . . 53 Move 867 | 76 120 671 Hop . | . . . Pick Up 38 | 12 2 24 Fast Attach 1 | 1 . . Attach 15 | 6 . 9 Detach . | . . . Swap 4 | . 1 3 Drop 9 | . 1 8 Fire 78 | 13 1 64 Melee . | . . . Ram . | . . . Kick . | . . . Crush . | . . . Escape Stasis . | . . . Rewire . | . . . Trap . | . . . Miscellaneous . | . . . Route ------- -11/Scrapyard -10/Materials (discovered 3 exits: [*Mat] / [*Min] / *Sub) -10/Subcaves (discovered 1 exit: [*Scr]) History --------- Turn | Location | Event 7 | -11/Scrapyard | Discovered new exit (range 14) 160 | -11/Scrapyard | Entered Materials 161 | -10/Materials | Met a group of wandering Federalists 265 | -10/Materials | Discovered new exit (range 7) 302 | -10/Materials | Build established: Mutant 302 | -10/Materials | Discovered new exit (range 16) 356 | -10/Materials | Discovered new exit (range 3) 359 | -10/Materials | Entered Subcaves 360 | -10/Subcaves | Continued accompanying wandering Federalists (4) 360 | -10/Subcaves | Approached by a straggling Scientist 565 | -10/Subcaves | Shifting Twisted Machinery released Multitool 602 | -10/Subcaves | Wandering Federalist uncovered a shortcut to Scraptown 977 | -10/Subcaves | Learned location of Zion (-7) 977 | -10/Subcaves | Met a Zionite searching for "candidates" 1284 | -10/Subcaves | Visited 4L-MR0's lab 1292 | -10/Subcaves | Learned Materials trap positions 1307 | -10/Subcaves | Found Powered Cannon 1602 | -10/Subcaves | Core integrity fell below 50% 1618 | -10/Subcaves | Core integrity fell below 20% 1631 | -10/Subcaves | Build established: Hauler-Mutant 1683 | -10/Subcaves | Shifting Twisted Machinery released Sub. Monowheel 1720 | -10/Subcaves | Learned Materials terminal intel 1755 | -10/Subcaves | A swath of the cavern ceiling suddenly collapsed 1891 | -10/Subcaves | Destroyed by MN-9HC(R) with Subdweller Laser Last Messages --------------- 01607_ Sub. Monowheel melted. 01607_ Sub. Laser melted. 01607_ 1G-ZW4(R) destroyed. 01636_ Sub. Laser destroyed. 01637_ WC-90W(R) destroyed. 01639_ Dropped Aluminum Leg. 01656_ Acquired Sub. Optics. 01659_ Acquired 15 matter. 01664_ Acquired Sub. Machine Gun. 01667_ Acquired Spk. Treads. 01669_ Acquired Battle Cannon. Sub. Monowheel falls loose from the Twisted Machinery. 01701_ Acquired Sub. Monowheel. 01720_ Acquired derelict log, extracted data. Data stored: Materials terminal intel. 01755_ RX-N0B(R) crushed by falling debris. A swath of the cavern ceiling suddenly collapses. 01885_ Sub. Laser shoots sparks and powers down. 01885_ MN-9HC(R) suffers critical hit (Destroy). 01887_ Ion Engine destroyed. Map ----- +----------------------------------------------------+ | ???????????????????????????????????#####???####### | | ??????????????????????????????????## # ##### # # | | ?????????????????????????????#????# | | ?????????????????????????????# ???## # ##### | | ?????????????????????????????# ??# #####???##### | | ?????????????????????????????## ?## #???????????# | | ?????????????????????????????# ### ###?????????? | | ??????????????????????????????# "##????????? | | ??????????????????????????????# """#????????? | | ??????????????????????????????## #### ?????"? | | ???????????????????????????????#####""""# ???" | | ????????????????????????????? #?#####"### ??" | | ????????????????????????? """"## ##""# | | ????????????????? ?? "" " ##"# """"# | | ????????????????? "" " # # # """"?? | | ???????????? ???? """""" # # ## """??? | | ???????????? ???? """"""""""""" #""###?#""???? | | ???????????# ????#""""""""" ## "#""#??""???? | | ??????????? ???# " "" ## "###???????? | | ??????????? #?## " " " " ##???????? | | ??????????? ## """"" " " ##????????? | | ??????????# ########?????????? | | ??????????# R #####????????????????? | | ?????????? #????????????????????? | | ?????????? ##????????????????????? | | ????????????# ## @##?????????????????????? | | ????????????# ##???# ##??????????????????????? | | ????????????????????## ###?????????????????????? | | ????????????????????# ##????????????????????? | | ????????????????????## #????????????????????? | | ??????????????????###### #????????????????????? | | ??????????????????# #### #????????????????????? | | ?????????????????## ##????????????????????? | | ?????????????????# ##?????????????????????? | | ?????????????????# #######??????????????????????? | | ?????????????????####????????????????????????????? | | ?????????????????????????????????????????????????? | | ?????????????????????????????????????????????????? | | ?????????????????????????????????????????????????? | | ?????????????????????????????????????????????????? | | ????????????????????????????????????###??????????? | | ???????????????????????????????????## ##????????## | | ???????????????????????????????????# # ##???????# | | ???????????????????????????????????## #???????## | | ????????????????????????????????????# ##???????# | | ????????????????????????????????????# #??????### | | ???????????????????????????????????## #?????## # | | ???????????????????????????????????# #?????# # | | ???????????????????????????????????## ###???## | | ???????????????????????????????????## # ###### | +----------------------------------------------------+ Best States ------------- Heat Dissipation 25 Energy Generation 10 Energy Capacity 250 Matter Stores 300 Matter Capacity 300 Sight Range 16 Terrain Scan Density 10 Evasion (%) 55 Recoil Reduction 2 Item Schematics ----------------- None Robot Schematics ------------------ None Fabricated ------------ Nothing Repaired ---------- Nothing Alien Tech Used ----------------- None Achievements -------------- None Challenges ------------ None Game ------ Seed HugeRecyclingKit Manual? 0 Play Time 00:10:12 Cumulative 173.4 hours Start 2025.09.10 @ 08:51:31 End 2025.09.10 @ 09:01:48 Sessions 1 Manual Loads 0 Difficulty Rogue Special Mode None Game No. 240 Rogue 240 Adventurer 0 Explorer 0 Win Type - Total 2 Types 2/0/0/0/0/0/0/0/0/0 Lore% 72 Gallery% 69 Achievement% 60 Wizard Run 0 Options --------- Layout 0 ASCII 0 Keyboard 0 Movement Mouse Keybinds 0 Fullscreen 1 Font 16/SmallcapsGlow Map View 75x55 Zoom Use 0% Tactical HUD 1 Map Filters NONE Filters NONE Steam 1 RUN: 737e6845-1fa0-4994-8016-00eaf4e25350